{"text_format":"3","workbook":"xlsx","n_sheets":7,"sheets":["Mandag","Tirsdag","Onsdag","Torsdag","Fredag","Lørdag","Søndag"],"not_rendered":{"defined_names":24},"read":"whole","date_system":"1900"}

{"sheet":"Mandag","index":0,"n_rows":10,"n_cols":13,"rows_kept":10,"merged":[[1,1,2,1],[1,2,1,10],[1,11,1,12],[2,2,2,10],[2,11,2,12]]}
[null,"SKIFTPLAN"]
[null,"MANDAG","Uken som begynner: ",{"$nulls":8},"DATO"]
[null,null,"Avdelingsnavn: ",{"$nulls":8},"AVDELING"]
[null,"Medarbeidernavn","07:00","08:00","09:00","10:00","11:00","12:00","13:00","14:00","15:00","Sykdom?","TOTALT"]
[null,"Stine R","leder","leder","leder","leder","leder","leder","leder","leder","leder",null,{"$f":"IFERROR(COUNTIF(Mandag[[#This Row],[07:00]:[15:00]],\"*\"),\"\")","v":9}]
[null,"Egil H",null,"kasse","kasse","kasse","kasse",{"$nulls":5},{"$f":"IFERROR(COUNTIF(Mandag[[#This Row],[07:00]:[15:00]],\"*\"),\"\")","v":4}]
[null,"Håvard S",null,"sentralbord","sentralbord","sentralbord","sentralbord ","sentralbord","sentralbord","sentralbord",null,null,{"$f":"IFERROR(COUNTIF(Mandag[[#This Row],[07:00]:[15:00]],\"*\"),\"\")","v":7}]
[null,"Jostein B",null,"sentralbord","sentralbord","sentralbord","sentralbord ","sentralbord","sentralbord","sentralbord",null,null,{"$f":"IFERROR(COUNTIF(Mandag[[#This Row],[07:00]:[15:00]],\"*\"),\"\")","v":7}]
[null,"Tore Ø",{"$nulls":10},{"$f":"IFERROR(COUNTIF(Mandag[[#This Row],[07:00]:[15:00]],\"*\"),\"\")","v":0}]
[null,"Pernille H",{"$nulls":5},"kasse","kasse","kasse","kasse",null,{"$f":"IFERROR(COUNTIF(Mandag[[#This Row],[07:00]:[15:00]],\"*\"),\"\")","v":4}]

{"sheet":"Tirsdag","index":1,"n_rows":10,"n_cols":13,"rows_kept":10,"merged":[[1,1,2,1],[1,2,1,10],[1,11,1,12],[2,2,2,10],[2,11,2,12]]}
[null,{"$f":"SHIFT_SCHEDULE_Title","v":"SKIFTPLAN"}]
[null,"TIRSDAG","Uken som begynner: ",{"$nulls":8},{"$f":"DATO","v":"DATO"}]
[null,null,"Avdelingsnavn: ",{"$nulls":8},{"$f":"AVDELING","v":"AVDELING"}]
[null,"Medarbeidernavn","07:00","08:00","09:00","10:00","11:00","12:00","13:00","14:00","15:00","Sykdom?","TOTALT"]
[null,"Stine R","leder","leder","leder","leder","leder","leder","leder","leder","leder",null,{"$f":"IFERROR(COUNTIF(Tirsdag[[#This Row],[07:00]:[15:00]],\"*\"),\"\")","v":9}]
[null,"Egil H",null,"kasse","kasse","kasse","kasse",{"$nulls":5},{"$f":"IFERROR(COUNTIF(Tirsdag[[#This Row],[07:00]:[15:00]],\"*\"),\"\")","v":4}]
[null,"Håvard S",null,"sentralbord","sentralbord","sentralbord","sentralbord ","sentralbord","sentralbord","sentralbord",null,null,{"$f":"IFERROR(COUNTIF(Tirsdag[[#This Row],[07:00]:[15:00]],\"*\"),\"\")","v":7}]
[null,"Jostein B",null,"sentralbord","sentralbord","sentralbord","sentralbord ","sentralbord","sentralbord","sentralbord",null,null,{"$f":"IFERROR(COUNTIF(Tirsdag[[#This Row],[07:00]:[15:00]],\"*\"),\"\")","v":7}]
[null,"Tore Ø",{"$nulls":9},"Sykdom",{"$f":"IFERROR(COUNTIF(Tirsdag[[#This Row],[07:00]:[15:00]],\"*\"),\"\")","v":0}]
[null,"Pernille H",{"$nulls":5},"kasse","kasse","kasse","kasse",null,{"$f":"IFERROR(COUNTIF(Tirsdag[[#This Row],[07:00]:[15:00]],\"*\"),\"\")","v":4}]

{"sheet":"Onsdag","index":2,"n_rows":10,"n_cols":13,"rows_kept":10,"merged":[[1,1,2,1],[1,2,1,10],[1,11,1,12],[2,2,2,10],[2,11,2,12]]}
[null,{"$f":"SHIFT_SCHEDULE_Title","v":"SKIFTPLAN"}]
[null,"ONSDAG","Uken som begynner: ",{"$nulls":8},{"$f":"DATO","v":"DATO"}]
[null,null,"Avdelingsnavn: ",{"$nulls":8},{"$f":"AVDELING","v":"AVDELING"}]
[null,"Medarbeidernavn","07:00","08:00","09:00","10:00","11:00","12:00","13:00","14:00","15:00","Sykdom?","TOTALT"]
[null,"Stine R","leder","leder","leder","leder","leder","leder","leder","leder","leder",null,{"$f":"IFERROR(COUNTIF(Onsdag[[#This Row],[07:00]:[15:00]],\"*\"),\"\")","v":9}]
[null,"Egil H",null,"kasse","kasse","kasse","kasse",{"$nulls":5},{"$f":"IFERROR(COUNTIF(Onsdag[[#This Row],[07:00]:[15:00]],\"*\"),\"\")","v":4}]
[null,"Håvard S",null,"sentralbord","sentralbord","sentralbord","sentralbord ","sentralbord","sentralbord","sentralbord",null,null,{"$f":"IFERROR(COUNTIF(Onsdag[[#This Row],[07:00]:[15:00]],\"*\"),\"\")","v":7}]
[null,"Jostein B",null,"sentralbord","sentralbord","sentralbord","sentralbord ","sentralbord","sentralbord","sentralbord",null,null,{"$f":"IFERROR(COUNTIF(Onsdag[[#This Row],[07:00]:[15:00]],\"*\"),\"\")","v":7}]
[null,"Tore Ø",{"$nulls":9},"Sykdom",{"$f":"IFERROR(COUNTIF(Onsdag[[#This Row],[07:00]:[15:00]],\"*\"),\"\")","v":0}]
[null,"Pernille H",{"$nulls":5},"kasse","kasse","kasse","kasse",null,{"$f":"IFERROR(COUNTIF(Onsdag[[#This Row],[07:00]:[15:00]],\"*\"),\"\")","v":4}]

{"sheet":"Torsdag","index":3,"n_rows":10,"n_cols":13,"rows_kept":10,"merged":[[1,1,2,1],[1,2,1,10],[1,11,1,12],[2,2,2,10],[2,11,2,12]]}
[null,{"$f":"SHIFT_SCHEDULE_Title","v":"SKIFTPLAN"}]
[null,"TORSDAG","Uken som begynner: ",{"$nulls":8},{"$f":"DATO","v":"DATO"}]
[null,null,"Avdelingsnavn: ",{"$nulls":8},{"$f":"AVDELING","v":"AVDELING"}]
[null,"Medarbeidernavn","07:00","08:00","09:00","10:00","11:00","12:00","13:00","14:00","15:00","Sykdom?","TOTALT"]
[null,"Stine R","leder","leder","leder","leder","leder","leder","leder","leder","leder",null,{"$f":"IFERROR(COUNTIF(Torsdag[[#This Row],[07:00]:[15:00]],\"*\"),\"\")","v":9}]
[null,"Egil H",null,"kasse","kasse","kasse","kasse",{"$nulls":5},{"$f":"IFERROR(COUNTIF(Torsdag[[#This Row],[07:00]:[15:00]],\"*\"),\"\")","v":4}]
[null,"Håvard S",null,"sentralbord","sentralbord","sentralbord","sentralbord ","sentralbord","sentralbord","sentralbord",null,null,{"$f":"IFERROR(COUNTIF(Torsdag[[#This Row],[07:00]:[15:00]],\"*\"),\"\")","v":7}]
[null,"Jostein B",null,"sentralbord","sentralbord","sentralbord","sentralbord ","sentralbord","sentralbord","sentralbord",null,null,{"$f":"IFERROR(COUNTIF(Torsdag[[#This Row],[07:00]:[15:00]],\"*\"),\"\")","v":7}]
[null,"Tore Ø",{"$nulls":9},"Sykdom",{"$f":"IFERROR(COUNTIF(Torsdag[[#This Row],[07:00]:[15:00]],\"*\"),\"\")","v":0}]
[null,"Pernille H",{"$nulls":5},"kasse","kasse","kasse","kasse",null,{"$f":"IFERROR(COUNTIF(Torsdag[[#This Row],[07:00]:[15:00]],\"*\"),\"\")","v":4}]

{"sheet":"Fredag","index":4,"n_rows":10,"n_cols":13,"rows_kept":10,"merged":[[1,1,2,1],[1,2,1,10],[1,11,1,12],[2,2,2,10],[2,11,2,12]]}
[null,{"$f":"SHIFT_SCHEDULE_Title","v":"SKIFTPLAN"}]
[null,"FREDAG","Uken som begynner: ",{"$nulls":8},{"$f":"DATO","v":"DATO"}]
[null,null,"Avdelingsnavn: ",{"$nulls":8},{"$f":"AVDELING","v":"AVDELING"}]
[null,"Medarbeidernavn","07:00","08:00","09:00","10:00","11:00","12:00","13:00","14:00","15:00","Sykdom?","TOTALT"]
[null,"Stine R","leder","leder","leder","leder","leder","leder","leder","leder","leder",null,{"$f":"IFERROR(COUNTIF(Fredag[[#This Row],[07:00]:[15:00]],\"*\"),\"\")","v":9}]
[null,"Egil H",null,"kasse","kasse","kasse","kasse",{"$nulls":5},{"$f":"IFERROR(COUNTIF(Fredag[[#This Row],[07:00]:[15:00]],\"*\"),\"\")","v":4}]
[null,"Håvard S",null,"sentralbord","sentralbord","sentralbord","sentralbord ","sentralbord","sentralbord","sentralbord",null,null,{"$f":"IFERROR(COUNTIF(Fredag[[#This Row],[07:00]:[15:00]],\"*\"),\"\")","v":7}]
[null,"Jostein B",null,"sentralbord","sentralbord","sentralbord","sentralbord ","sentralbord","sentralbord","sentralbord",null,null,{"$f":"IFERROR(COUNTIF(Fredag[[#This Row],[07:00]:[15:00]],\"*\"),\"\")","v":7}]
[null,"Tore Ø",{"$nulls":9},"Sykdom",{"$f":"IFERROR(COUNTIF(Fredag[[#This Row],[07:00]:[15:00]],\"*\"),\"\")","v":0}]
[null,"Pernille H",{"$nulls":5},"kasse","kasse","kasse","kasse",null,{"$f":"IFERROR(COUNTIF(Fredag[[#This Row],[07:00]:[15:00]],\"*\"),\"\")","v":4}]

{"sheet":"Lørdag","index":5,"n_rows":10,"n_cols":13,"rows_kept":10,"merged":[[1,1,2,1],[1,2,1,10],[1,11,1,12],[2,2,2,10],[2,11,2,12]]}
[null,{"$f":"SHIFT_SCHEDULE_Title","v":"SKIFTPLAN"}]
[null,"LØRDAG","Uken som begynner: ",{"$nulls":8},{"$f":"DATO","v":"DATO"}]
[null,null,"Avdelingsnavn: ",{"$nulls":8},{"$f":"AVDELING","v":"AVDELING"}]
[null,"Medarbeidernavn","07:00","08:00","09:00","10:00","11:00","12:00","13:00","14:00","15:00","Sykdom?","TOTALT"]
[null,"Stine R","leder","leder","leder","leder","leder","leder","leder","leder","leder",null,{"$f":"IFERROR(COUNTIF(Lørdag[[#This Row],[07:00]:[15:00]],\"*\"),\"\")","v":9}]
[null,"Egil H",null,"kasse","kasse","kasse","kasse",{"$nulls":5},{"$f":"IFERROR(COUNTIF(Lørdag[[#This Row],[07:00]:[15:00]],\"*\"),\"\")","v":4}]
[null,"Håvard S",null,"sentralbord","sentralbord","sentralbord","sentralbord ","sentralbord","sentralbord","sentralbord",null,null,{"$f":"IFERROR(COUNTIF(Lørdag[[#This Row],[07:00]:[15:00]],\"*\"),\"\")","v":7}]
[null,"Jostein B",null,"sentralbord","sentralbord","sentralbord","sentralbord ","sentralbord","sentralbord","sentralbord",null,null,{"$f":"IFERROR(COUNTIF(Lørdag[[#This Row],[07:00]:[15:00]],\"*\"),\"\")","v":7}]
[null,"Tore Ø",{"$nulls":9},"Sykdom",{"$f":"IFERROR(COUNTIF(Lørdag[[#This Row],[07:00]:[15:00]],\"*\"),\"\")","v":0}]
[null,"Pernille H",{"$nulls":5},"kasse","kasse","kasse","kasse",null,{"$f":"IFERROR(COUNTIF(Lørdag[[#This Row],[07:00]:[15:00]],\"*\"),\"\")","v":4}]

{"sheet":"Søndag","index":6,"n_rows":10,"n_cols":13,"rows_kept":10,"merged":[[1,1,2,1],[1,2,1,10],[1,11,1,12],[2,2,2,10],[2,11,2,12]]}
[null,{"$f":"SHIFT_SCHEDULE_Title","v":"SKIFTPLAN"}]
[null,"SØNDAG","Uken som begynner: ",{"$nulls":8},{"$f":"DATO","v":"DATO"}]
[null,null,"Avdelingsnavn: ",{"$nulls":8},{"$f":"AVDELING","v":"AVDELING"}]
[null,"Medarbeidernavn","07:00","08:00","09:00","10:00","11:00","12:00","13:00","14:00","15:00","Sykdom?","TOTALT"]
[null,"Stine R","leder","leder","leder","leder","leder","leder","leder","leder","leder",null,{"$f":"IFERROR(COUNTIF(Søndag[[#This Row],[07:00]:[15:00]],\"*\"),\"\")","v":9}]
[null,"Egil H",null,"kasse","kasse","kasse","kasse",{"$nulls":5},{"$f":"IFERROR(COUNTIF(Søndag[[#This Row],[07:00]:[15:00]],\"*\"),\"\")","v":4}]
[null,"Håvard S",null,"sentralbord","sentralbord","sentralbord","sentralbord ","sentralbord","sentralbord","sentralbord",null,null,{"$f":"IFERROR(COUNTIF(Søndag[[#This Row],[07:00]:[15:00]],\"*\"),\"\")","v":7}]
[null,"Jostein B",null,"sentralbord","sentralbord","sentralbord","sentralbord ","sentralbord","sentralbord","sentralbord",null,null,{"$f":"IFERROR(COUNTIF(Søndag[[#This Row],[07:00]:[15:00]],\"*\"),\"\")","v":7}]
[null,"Tore Ø",{"$nulls":9},"Sykdom",{"$f":"IFERROR(COUNTIF(Søndag[[#This Row],[07:00]:[15:00]],\"*\"),\"\")","v":0}]
[null,"Pernille H",{"$nulls":5},"kasse","kasse","kasse","kasse",null,{"$f":"IFERROR(COUNTIF(Søndag[[#This Row],[07:00]:[15:00]],\"*\"),\"\")","v":4}]